fUSD/lending_fUSD_20250407
["ID","MTS","AMOUNT","RATE_DAILY","PERIOD"]
[357314952,1744004759306,-529.19,0.00052602,120]
[357314953,1744004759379,-500.0,0.00052602,120]
[357314954,1744004759453,-1104.72,0.00052602,120]
[357314955,1744004759523,-500.0,0.00052602,120]
[357314956,1744004759594,-351.81271643,0.00052602,120]
[357314957,1744004759670,-500.0,0.00052602,120]
[357314958,1744004759745,-549.39,0.00052602,120]
[357314959,1744004759817,-500.0,0.00052602,120]
[357314960,1744004759892,-500.0,0.00052602,120]
[357314961,1744004759964,-711.76,0.00052602,120]
[357314962,1744004760038,-550.98374589,0.00052602,120]
[357314963,1744004760115,-500.0,0.00052602,120]
[357314964,1744004760198,-532.63,0.00052876,120]
[357314965,1744004760295,-712.97,0.00052876,120]
[357314966,1744004760383,-552.93,0.00052876,120]
[357314967,1744004760463,-529.19,0.00052876,120]
[357314968,1744004760547,-500.0,0.00052876,120]
[357314969,1744004760632,-1104.72,0.00052876,120]
[357314970,1744004760714,-500.0,0.00052876,120]
[357314971,1744004760798,-500.0,0.00052876,120]
[357314972,1744004760879,-549.39,0.00052876,120]
[357314973,1744004760958,-500.0,0.00052876,120]
[357314974,1744004761037,-177.00084915,0.00052876,120]
[357314975,1744004761121,-711.76,0.00052876,120]
[357314976,1744004761202,-500.0,0.00052876,120]
[357314977,1744004761285,-532.63,0.0005315,120]
[357314978,1744004761369,-712.97,0.0005315,120]
[357314979,1744004761450,-552.93,0.0005315,120]
[357314980,1744004761529,-529.19,0.0005315,120]
[357314981,1744004761613,-500.0,0.0005315,120]
[357314982,1744004761689,-1104.72,0.0005315,120]
[357314983,1744004761765,-500.0,0.0005315,120]
[357314984,1744004761845,-500.0,0.0005315,120]
[357314985,1744004761928,-549.39,0.0005315,120]
[357314986,1744004762002,-266.74478113,0.0005315,120]
[357314987,1744004762077,-711.76,0.0005315,120]
[357314988,1744004762148,-500.0,0.0005315,120]
[357314989,1744004762223,-532.63,0.00053424,120]
[357314990,1744004762302,-712.97,0.00053424,120]
[357314991,1744004762372,-552.93,0.00053424,120]
[357314992,1744004762450,-529.19,0.00053424,120]
[357314993,1744004762526,-500.0,0.00053424,120]
[357314994,1744004762600,-1104.72,0.00053424,120]
[357314995,1744004762682,-500.0,0.00053424,120]
[357314996,1744004762761,-500.0,0.00053424,120]
[357314997,1744004762842,-549.39,0.00053424,120]
[357314998,1744004762929,-711.76,0.00053424,120]
[357314999,1744004763007,-500.0,0.00053424,120]
[357315000,1744004763090,-210.0,0.0005355,30]
[357315001,1744004763172,-210.0,0.0005355,30]
[357315002,1744004763253,-532.63,0.00053698,120]
[357315003,1744004763337,-712.97,0.00053698,120]
[357315004,1744004763422,-552.93,0.00053698,120]
[357315005,1744004763503,-529.19,0.00053698,120]
[357315006,1744004763583,-500.0,0.00053698,120]
[357315007,1744004763664,-1104.72,0.00053698,120]
[357315008,1744004763746,-500.0,0.00053698,120]
[357315009,1744004763827,-500.0,0.00053698,120]
[357315010,1744004763905,-549.39,0.00053698,120]
[357315011,1744004763982,-711.76,0.00053698,120]
[357315012,1744004764057,-500.0,0.00053698,120]
[357315013,1744004764135,-532.63,0.00053972,120]
[357315014,1744004764215,-712.97,0.00053972,120]
[357315015,1744004764292,-552.93,0.00053972,120]
[357315016,1744004764373,-529.19,0.00053972,120]
[357315017,1744004764477,-500.0,0.00053972,120]
[357315018,1744004764554,-1104.72,0.00053972,120]
[357315019,1744004764627,-500.0,0.00053972,120]
[357315020,1744004764701,-500.0,0.00053972,120]
[357315021,1744004764775,-549.39,0.00053972,120]
[357315022,1744004764849,-711.76,0.00053972,120]
[357315023,1744004764924,-500.0,0.00053972,120]
[357315024,1744004765108,-2287.35,0.00054,60]
[357315025,1744004765193,-532.63,0.00054246,120]
[357315026,1744004765270,-712.97,0.00054246,120]
[357315027,1744004765344,-552.93,0.00054246,120]
[357315028,1744004765420,-529.19,0.00054246,120]
[357315029,1744004765497,-500.0,0.00054246,120]
[357315030,1744004765599,-1104.72,0.00054246,120]
[357315031,1744004765682,-358.82499684,0.00054246,120]
[357315032,1744004765764,-500.0,0.00054246,120]
[357315033,1744004765850,-549.39,0.00054246,120]
[357315034,1744004765931,-711.76,0.00054246,120]
[357315035,1744004766005,-500.0,0.00054246,120]
[357315036,1744004766080,-532.63,0.0005452,120]
[357315037,1744004766154,-712.97,0.0005452,120]
[357315038,1744004766231,-552.93,0.0005452,120]
[357315039,1744004766306,-529.19,0.0005452,120]
[357315040,1744004766384,-643.40287693,0.0005452,120]
[357315041,1744004766462,-1104.72,0.0005452,120]
[357315042,1744004766544,-500.0,0.0005452,120]
[357315043,1744004766622,-549.39,0.0005452,120]
[357315044,1744004766700,-711.76,0.0005452,120]
[357315045,1744004766778,-500.0,0.0005452,120]
[357315046,1744004766858,-210.0,0.0005479,30]
[357315047,1744004766937,-210.0,0.0005479,30]
[357315048,1744004767012,-502.02,0.00054794,120]
[357315049,1744004767086,-532.63,0.00054794,120]
[357315050,1744004767161,-712.97,0.00054794,120]
[357315051,1744004767234,-552.93,0.00054794,120]
[357315052,1744004767307,-529.19,0.00054794,120]
[357315053,1744004767381,-1104.72,0.00054794,120]
[357315054,1744004767457,-500.0,0.00054794,120]
[357315055,1744004767532,-549.39,0.00054794,120]
[357315056,1744004767608,-711.76,0.00054794,120]
[357315057,1744004767688,-628.09414804,0.00054794,120]
[357315058,1744004767764,-700.0,0.00054795,30]
[357315059,1744004767845,-1000.0,0.00054899,120]
[357315060,1744004767928,-502.02,0.00055068,120]
[357315061,1744004768008,-532.63,0.00055068,120]
[357315062,1744004768095,-712.97,0.00055068,120]
[357315063,1744004768182,-552.93,0.00055068,120]
[357315064,1744004768270,-529.19,0.00055068,120]
[357315065,1744004768355,-1104.72,0.00055068,120]
[357315066,1744004768444,-500.0,0.00055068,120]
[357315067,1744004768528,-549.39,0.00055068,120]
[357315068,1744004768609,-711.76,0.00055068,120]
[357315069,1744004768690,-502.02,0.00055342,120]
[357315070,1744004768771,-532.63,0.00055342,120]
[357315071,1744004768848,-712.97,0.00055342,120]
[357315072,1744004768931,-552.93,0.00055342,120]
[357315073,1744004769006,-529.19,0.00055342,120]
[357315074,1744004769084,-1104.72,0.00055342,120]
[357315075,1744004769162,-500.0,0.00055342,120]
[357315076,1744004769239,-549.39,0.00055342,120]
[357315077,1744004769315,-711.76,0.00055342,120]
[357315078,1744004769391,-202.809799,0.000555,120]
[357315079,1744004769469,-151.34782,0.000555,120]
[357315080,1744004769544,-151.0,0.000555,120]
[357315081,1744004769619,-502.21093225,0.00055616,120]
[357315082,1744004769693,-532.73984078,0.00055616,120]
[357315083,1744004769765,-712.97658065,0.00055616,120]
[357315084,1744004769835,-553.06283521,0.00055616,120]
[357315085,1744004769910,-529.20831905,0.00055616,120]
[357315086,1744004769986,-1104.84850269,0.00055616,120]
[357315087,1744004770061,-151.0,0.00055616,120]
[357315088,1744004770136,-321.75195788,0.00055616,120]
[357315089,1744004770214,-549.55986429,0.00055616,120]
[357315090,1744004770289,-711.80252097,0.00055616,120]
[357315091,1744004770362,-151.0,0.00056,120]
[357315092,1744004770439,-151.0,0.000565,120]
[357315093,1744004770516,-151.0,0.000565,120]
[357315094,1744004770593,-212.062935,0.00057,120]
[357315095,1744004770671,-151.0,0.00057,120]
[357315096,1744004770751,-151.0,0.000575,120]
[357315097,1744004770831,-151.0,0.00057534,120]
[357315098,1744004770905,-151.0,0.00058,120]
[357315099,1744004770976,-189.0,0.00058,120]
[357315100,1744004771045,-2000.0,0.000589,120]
[357315101,1744004771114,-266.83,0.00059171,30]
[357315102,1744004771185,-151.0,0.000595,120]
[357315103,1744004771256,-151.0,0.000595,120]
[357315104,1744004771327,-151.0,0.000595,120]
[357315105,1744004771401,-151.0,0.000595,120]
[357315106,1744004771477,-748.517517,0.000595,120]
[357315107,1744004771548,-748.517517,0.000595,120]
[357315108,1744004771622,-9857.9,0.000595,120]
[357315109,1744004771694,-9876.35,0.000595,120]
[357315110,1744004771764,-5265.75,0.000595,120]
[357315111,1744004772049,-180.0,0.000599,120]
[357315112,1744004772125,-1995.14622746,0.000599,120]
[357315113,1744004772198,-151.0,0.0006,120]
[357315114,1744004772272,-151.0,0.0006,120]
[357315115,1744004772347,-151.0,0.0006,120]
[357315116,1744004772418,-748.517517,0.0006,120]
[357315117,1744004772489,-748.517517,0.0006,120]
[357315118,1744004772559,-1181.17,0.0006,120]
[357315119,1744004772631,-700.0,0.00060274,32]
[357315120,1744004772718,-1705900.46545983,0.000605,120]
[357315121,1744004772791,-151.0,0.000605,120]
[357315122,1744004772862,-297.307409,0.000605,120]
[357315123,1744004772941,-151.0,0.000605,120]
[357315124,1744004773013,-4999.0,0.000605,120]
[357315125,1744004773083,-4999.0,0.000605,120]
[357315126,1744004773159,-4999.0,0.000605,120]
[357315127,1744004773234,-4999.0,0.000605,120]
[357315128,1744004773310,-4999.0,0.000605,120]
[357315129,1744004773388,-4999.0,0.000605,120]
[357315130,1744004773465,-4999.0,0.000605,120]
[357315131,1744004773539,-4999.0,0.000605,120]
[357315132,1744004773614,-4999.0,0.000605,120]
[357315133,1744004773689,-4999.0,0.000605,120]
[357315134,1744004773765,-4999.0,0.000605,120]
[357315135,1744004773843,-4999.0,0.000605,120]
[357315136,1744004773918,-4999.0,0.000605,120]
[357315137,1744004773994,-4999.0,0.000605,120]
[357315138,1744004774071,-4999.0,0.000605,120]
[357315139,1744004774152,-4999.0,0.000605,120]
[357315140,1744004774227,-748.517517,0.000605,120]
[357315141,1744004774296,-748.517517,0.000605,120]
[357315142,1744004774368,-154.216,0.000605,30]
[357315143,1744004774444,-200.0,0.000605,30]
[357315144,1744004774519,-500.0,0.000605,120]
[357315145,1744004774590,-500.0,0.000605,120]
[357315146,1744004774663,-500.0,0.000605,120]
[357315147,1744004774736,-500.0,0.000605,120]
[357315148,1744004774808,-500.0,0.000605,120]
[357315149,1744004774881,-500.0,0.000605,120]
[357315150,1744004774953,-500.0,0.000605,120]
[357315151,1744004775024,-500.0,0.000605,120]
[357315152,1744004775092,-500.0,0.000605,120]
[357315153,1744004775163,-500.0,0.000605,120]
[357315154,1744004775235,-500.0,0.000605,120]
[357315155,1744004775309,-500.0,0.000605,120]
[357315156,1744004775383,-500.0,0.000605,120]
[357315157,1744004775462,-500.0,0.000605,120]
[357315158,1744004775536,-567.45598238,0.000605,120]
[357315159,1744004775613,-1062.0,0.000605,120]
[357315160,1744004775699,-1062.0,0.000605,120]
[357315161,1744004775776,-1062.0,0.000605,120]
[357315162,1744004775853,-1062.0,0.000605,120]
[357315163,1744004775929,-1062.0,0.000605,120]
[357315164,1744004776003,-1062.0,0.000605,120]
[357315165,1744004776077,-1062.0,0.000605,120]
[357315166,1744004776147,-1062.0,0.000605,120]
[357315167,1744004776219,-1062.0,0.000605,120]
[357315168,1744004776289,-1062.0,0.000605,120]
[357315169,1744004776357,-1062.0,0.000605,120]
[357315170,1744004776430,-1062.0,0.000605,120]
[357315171,1744004776505,-1062.0,0.000605,120]
[357315172,1744004776577,-1062.0,0.000605,120]
[357315173,1744004776651,-1062.0,0.000605,120]
[357315174,1744004776724,-1062.0,0.000605,120]
[357315175,1744004776797,-1062.0,0.000605,120]
[357315176,1744004776877,-1062.0,0.000605,120]
[357315177,1744004776954,-1062.0,0.000605,120]
[357315178,1744004777027,-1076.22906215,0.000605,120]
[357315179,1744004777097,-150.0,0.000605,120]
[357315180,1744004777166,-150.0,0.000605,120]
[357315181,1744004777236,-212.25648908,0.000605,120]
[357315182,1744004777358,-150.0,0.000605,120]
[357315183,1744004777431,-150.0,0.000605,120]
[357315184,1744004777504,-211.79609054,0.000605,120]
[357315185,1744004777579,-150.0,0.000605,120]
[357315186,1744004777650,-150.0,0.000605,120]
[357315187,1744004777724,-204.69384729,0.000605,120]
[357315188,1744004777797,-150.88428039,0.000605,120]
[357315189,1744004777872,-150.0,0.000605,120]
[357315190,1744004777944,-150.0,0.000605,120]
[357315191,1744004778015,-202.13508886,0.000605,120]
[357315192,1744004778086,-500.0,0.000605,120]
[357315193,1744004778157,-627.46345832,0.000605,120]
[357315194,1744004778233,-514.51189667,0.00060503,60]
[357315195,1744004778311,-1066.0,0.00060638,120]
[357315196,1744004778391,-918.28169265,0.000608,120]
[357315197,1744004778472,-500.0,0.00060895,60]
[357315198,1744004778551,-1000000.0,0.00061,120]
[357315199,1744004778630,-879233.87474755,0.00061,120]
[357315200,1744004825094,-9587.77182588,0.00043736,120]
[357315201,1744004825175,-9587.77182587,0.00046868,120]
[357315202,1744004825252,-500.0,0.00049315,120]
[357315203,1744004825333,-500.0,0.00049315,120]
[357315204,1744004825423,-500.0,0.00049315,120]
[357315205,1744004825505,-500.0,0.00049315,120]
[357315206,1744004825587,-500.0,0.00049315,120]
[357315207,1744004825665,-500.0,0.00049315,120]
[357315208,1744004825741,-3054.48,0.00049315,30]
[357315209,1744004825812,-500.0,0.00049315,120]
[357315210,1744004825885,-998.75,0.00049315,120]
[357315211,1744004825958,-500.0,0.00049315,120]
[357315212,1744004826031,-500.0,0.00049315,120]
[357315213,1744004826378,-500.0,0.00049315,120]
[357315214,1744004826455,-500.0,0.00049315,120]
[357315215,1744004826529,-500.0,0.00049315,120]
[357315216,1744004826601,-500.0,0.00049315,120]
[357315217,1744004826673,-279.28863655,0.00049315,120]
[357315218,1744004826747,-500.0,0.00049315,120]
[357315219,1744004826816,-571.0479976,0.00049315,120]
[357315220,1744004826885,-676.99,0.00049315,120]
[357315221,1744004826954,-500.0,0.00049315,120]
[357315222,1744004827024,-500.0,0.00049315,120]
[357315223,1744004827096,-500.0,0.00049315,120]
[357315224,1744004827166,-500.0,0.00049315,120]
[357315225,1744004827238,-500.0,0.00049315,120]
[357315226,1744004827310,-526.94838792,0.00049315,120]
[357315227,1744004827382,-500.0,0.00049315,120]
[357315228,1744004827456,-500.0,0.00049315,120]
[357315229,1744004827532,-500.0,0.00049315,120]
[357315230,1744004827605,-588.47,0.00049315,120]
[357315231,1744004827676,-517.88270009,0.00049315,120]
[357315232,1744004827747,-500.0,0.00049315,120]
[357315233,1744004827826,-500.0,0.00049589,120]
[357315234,1744004827902,-500.0,0.00049589,120]
[357315235,1744004827983,-500.0,0.00049589,120]
[357315236,1744004828062,-500.0,0.00049589,120]
[357315237,1744004828140,-500.0,0.00049589,120]
[357315238,1744004828218,-500.0,0.00049589,120]
[357315239,1744004828296,-3054.48,0.00049589,30]
[357315240,1744004828380,-500.0,0.00049589,120]
[357315241,1744004828464,-998.75,0.00049589,120]
[357315242,1744004828543,-500.0,0.00049589,120]
[357315243,1744004828619,-500.0,0.00049589,120]
[357315244,1744004828694,-500.0,0.00049589,120]
[357315245,1744004828766,-500.0,0.00049589,120]
[357315246,1744004828835,-500.0,0.00049589,120]
[357315247,1744004828908,-500.0,0.00049589,120]
[357315248,1744004828979,-211.79704508,0.00049589,120]
[357315249,1744004829051,-676.99,0.00049589,120]
[357315250,1744004829128,-500.0,0.00049589,120]
[357315251,1744004829204,-500.0,0.00049589,120]
[357315252,1744004829280,-500.0,0.00049589,120]
[357315253,1744004829358,-500.0,0.00049589,120]
[357315254,1744004829435,-500.0,0.00049589,120]
[357315255,1744004829513,-608.27650227,0.00049589,120]
[357315256,1744004829589,-500.0,0.00049589,120]
[357315257,1744004829673,-500.0,0.00049589,120]
[357315258,1744004829748,-588.47,0.00049589,120]
[357315259,1744004829823,-500.0,0.00049589,120]
[357315260,1744004829897,-500.0,0.00049863,120]
[357315261,1744004829969,-587.66490972,0.00049863,120]
[357315262,1744004830036,-553.19496698,0.00049863,120]
[357315263,1744004830103,-500.0,0.00049863,120]
[357315264,1744004830170,-500.0,0.00049863,120]
[357315265,1744004830237,-500.0,0.00049863,120]
[357315266,1744004830311,-3054.48,0.00049863,30]
[357315267,1744004830389,-555.88368272,0.00049863,120]
[357315268,1744004830466,-998.75,0.00049863,120]
[357315269,1744004830544,-500.0,0.00049863,120]
[357315270,1744004830619,-500.0,0.00049863,120]
[357315271,1744004830692,-238.8725581,0.00049863,120]
[357315272,1744004830765,-500.0,0.00049863,120]
[357315273,1744004830835,-438.32844656,0.00049863,120]
[357315274,1744004830903,-500.0,0.00049863,120]
[357315275,1744004830970,-676.99,0.00049863,120]
[357315276,1744004831038,-500.0,0.00049863,120]
[357315277,1744004831105,-500.0,0.00049863,120]
[357315278,1744004831170,-500.0,0.00049863,120]
[357315279,1744004831235,-500.0,0.00049863,120]
[357315280,1744004831302,-500.0,0.00049863,120]
[357315281,1744004831369,-500.0,0.00049863,120]
[357315282,1744004831469,-500.0,0.00049863,120]
[357315283,1744004831541,-588.47,0.00049863,120]
[357315284,1744004831614,-500.0,0.00049863,120]
[357315285,1744004831692,-9587.77182587,0.0005,120]
[357315286,1744004831768,-500.0,0.00050136,120]
[357315287,1744004831844,-500.0,0.00050136,120]
[357315288,1744004831918,-500.0,0.00050136,120]
[357315289,1744004831991,-500.0,0.00050136,120]
[357315290,1744004832062,-500.0,0.00050136,120]
[357315291,1744004832132,-3054.48,0.00050136,30]
[357315292,1744004832201,-998.75,0.00050136,120]
[357315293,1744004832270,-500.0,0.00050136,120]
[357315294,1744004832341,-500.0,0.00050136,120]
[357315295,1744004832414,-500.0,0.00050136,120]
[357315296,1744004832485,-500.0,0.00050136,120]
[357315297,1744004832556,-676.99,0.00050136,120]
[357315298,1744004832625,-492.02910397,0.00050136,120]
[357315299,1744004832699,-500.0,0.00050136,120]
[357315300,1744004832776,-500.0,0.00050136,120]
[357315301,1744004832849,-500.0,0.00050136,120]
[357315302,1744004832923,-500.0,0.00050136,120]
[357315303,1744004832993,-500.0,0.00050136,120]
[357315304,1744004833064,-500.0,0.00050136,120]
[357315305,1744004833134,-588.47,0.00050136,120]
[357315306,1744004833206,-500.0,0.00050136,120]
[357315307,1744004833281,-500.0,0.0005041,120]
[357315308,1744004833352,-500.0,0.0005041,120]
[357315309,1744004833423,-500.0,0.0005041,120]
[357315310,1744004833496,-500.0,0.0005041,120]
[357315311,1744004833568,-500.0,0.0005041,120]
[357315312,1744004833639,-3054.48,0.0005041,30]
[357315313,1744004833717,-998.75,0.0005041,120]
[357315314,1744004833792,-578.95647218,0.0005041,120]
[357315315,1744004833863,-500.0,0.0005041,120]
[357315316,1744004833932,-500.0,0.0005041,120]
[357315317,1744004834002,-500.0,0.0005041,120]
[357315318,1744004834082,-676.99,0.0005041,120]
[357315319,1744004834157,-500.0,0.0005041,120]
[357315320,1744004834232,-500.0,0.0005041,120]
[357315321,1744004834306,-500.0,0.0005041,120]
[357315322,1744004834384,-500.0,0.0005041,120]
[357315323,1744004834459,-500.0,0.0005041,120]
[357315324,1744004834536,-373.77134436,0.0005041,120]
[357315325,1744004834608,-588.47,0.0005041,120]
[357315326,1744004834681,-500.0,0.0005041,120]
[357315327,1744004834753,-229.19999797,0.00050684,120]
[357315328,1744004834825,-500.0,0.00050684,120]
[357315329,1744004834896,-500.0,0.00050684,120]
[357315330,1744004834964,-500.0,0.00050684,120]
[357315331,1744004835036,-500.0,0.00050684,120]
[357315332,1744004835106,-3054.48,0.00050684,30]
[357315333,1744004835175,-998.75,0.00050684,120]
[357315334,1744004835246,-500.0,0.00050684,120]
[357315335,1744004835318,-500.0,0.00050684,120]
[357315336,1744004835391,-500.0,0.00050684,120]
[357315337,1744004835466,-676.99,0.00050684,120]
[357315338,1744004835541,-500.0,0.00050684,120]
[357315339,1744004835614,-500.0,0.00050684,120]
[357315340,1744004835686,-500.0,0.00050684,120]
[357315341,1744004835764,-500.0,0.00050684,120]
[357315342,1744004835837,-500.0,0.00050684,120]
[357315343,1744004835914,-588.47,0.00050684,120]
[357315344,1744004835986,-629.35834602,0.00050684,120]
[357315345,1744004836057,-157.94440786,0.00050958,120]
[357315346,1744004836128,-500.0,0.00050958,120]
[357315347,1744004836199,-500.0,0.00050958,120]
[357315348,1744004836271,-500.0,0.00050958,120]
[357315349,1744004836345,-3054.48,0.00050958,30]
[357315350,1744004836423,-998.75,0.00050958,120]
[357315351,1744004836500,-500.0,0.00050958,120]
[357315352,1744004836576,-500.0,0.00050958,120]
[357315353,1744004836648,-500.0,0.00050958,120]
[357315354,1744004836727,-676.99,0.00050958,120]
[357315355,1744004836796,-500.0,0.00050958,120]
[357315356,1744004836864,-218.5645189,0.00050958,120]
[357315357,1744004836929,-500.0,0.00050958,120]
[357315358,1744004836998,-500.0,0.00050958,120]
[357315359,1744004837064,-500.0,0.00050958,120]
[357315360,1744004837131,-588.47,0.00050958,120]
[357315361,1744004837203,-500.0,0.00051232,120]
[357315362,1744004837274,-500.0,0.00051232,120]
[357315363,1744004837343,-500.0,0.00051232,120]
[357315364,1744004837414,-3054.48,0.00051232,30]
[357315365,1744004837489,-998.75,0.00051232,120]
[357315366,1744004837561,-500.0,0.00051232,120]
[357315367,1744004837631,-500.0,0.00051232,120]
[357315368,1744004837704,-500.0,0.00051232,120]
[357315369,1744004837743,-676.99,0.00051232,120]
[357315370,1744004837785,-500.0,0.00051232,120]
[357315371,1744004837823,-479.61347276,0.00051232,120]
[357315372,1744004837864,-378.87974859,0.00051232,120]
[357315373,1744004837904,-516.85780068,0.00051232,120]
[357315374,1744004837946,-588.47,0.00051232,120]
[357315375,1744004837986,-500.0,0.00051506,120]
[357315376,1744004838025,-500.0,0.00051506,120]
[357315377,1744004838064,-500.0,0.00051506,120]
[357315378,1744004838104,-3054.48,0.00051506,30]
[357315379,1744004838144,-998.75,0.00051506,120]
[357315380,1744004838184,-500.0,0.00051506,120]
[357315381,1744004838224,-500.0,0.00051506,120]
[357315382,1744004838265,-500.0,0.00051506,120]
[357315383,1744004838306,-676.99,0.00051506,120]
[357315384,1744004838347,-500.0,0.00051506,120]
[357315385,1744004838391,-588.47,0.00051506,120]
[357315386,1744004838430,-500.0,0.0005178,120]
[357315387,1744004838614,-500.0,0.0005178,120]
[357315388,1744004838653,-515.78641575,0.0005178,120]
[357315389,1744004838693,-3054.48,0.0005178,30]
[357315390,1744004838733,-998.75,0.0005178,120]
[357315391,1744004838782,-500.0,0.0005178,120]
[357315392,1744004838826,-500.0,0.0005178,120]
[357315393,1744004838869,-303.06078922,0.0005178,120]
[357315394,1744004838910,-676.99,0.0005178,120]
[357315395,1744004838955,-500.0,0.0005178,120]
[357315396,1744004838995,-588.47,0.0005178,120]
[357315397,1744004839035,-500.0,0.00052054,120]
[357315398,1744004839075,-500.0,0.00052054,120]
[357315399,1744004839114,-3054.48,0.00052054,30]
[357315400,1744004839152,-998.75,0.00052054,120]
[357315401,1744004839195,-500.0,0.00052054,120]
[357315402,1744004839236,-500.0,0.00052054,120]
[357315403,1744004839276,-676.99,0.00052054,120]
[357315404,1744004839315,-500.0,0.00052054,120]
[357315405,1744004839354,-588.47,0.00052054,120]
[357315406,1744004839393,-500.0,0.00052328,120]
[357315407,1744004839433,-500.0,0.00052328,120]
[357315408,1744004839473,-3054.48,0.00052328,30]
[357315409,1744004839514,-998.75,0.00052328,120]
[357315410,1744004839555,-500.0,0.00052328,120]
[357315411,1744004839595,-500.0,0.00052328,120]
[357315412,1744004839635,-676.99,0.00052328,120]
[357315413,1744004839679,-500.0,0.00052328,120]
[357315414,1744004839719,-588.47,0.00052328,120]
[357315415,1744004839758,-500.0,0.00052602,120]
[357315416,1744004839794,-500.0,0.00052602,120]
[357315417,1744004839830,-3054.48,0.00052602,30]
[357315418,1744004839869,-998.75,0.00052602,120]
[357315419,1744004839904,-500.0,0.00052602,120]
[357315420,1744004839943,-500.0,0.00052602,120]
[357315421,1744004839978,-676.99,0.00052602,120]
[357315422,1744004840014,-500.0,0.00052602,120]
[357315423,1744004840050,-588.47,0.00052602,120]
[357315424,1744004840086,-500.0,0.00052876,120]
[357315425,1744004840122,-500.0,0.00052876,120]
[357315426,1744004840157,-3054.48,0.00052876,30]
[357315427,1744004840194,-998.75,0.00052876,120]
[357315428,1744004840229,-500.0,0.00052876,120]
[357315429,1744004840264,-291.09657674,0.00052876,120]
[357315430,1744004840298,-676.99,0.00052876,120]
[357315431,1744004840335,-500.0,0.00052876,120]
[357315432,1744004840373,-588.47,0.00052876,120]
[357315433,1744004840410,-500.0,0.0005315,120]
[357315434,1744004840452,-500.0,0.0005315,120]
[357315435,1744004840491,-3054.48,0.0005315,30]
[357315436,1744004840529,-998.75,0.0005315,120]
[357315437,1744004840568,-441.83722879,0.0005315,120]
[357315438,1744004840605,-676.99,0.0005315,120]
[357315439,1744004840644,-500.0,0.0005315,120]
[357315440,1744004840682,-588.47,0.0005315,120]
[357315441,1744004840720,-150.0,0.00053423,90]
[357315442,1744004840755,-150.0,0.00053423,90]
[357315443,1744004840790,-150.0,0.00053423,90]
[357315444,1744004840827,-150.0,0.00053423,90]
[357315445,1744004840862,-150.0,0.00053423,90]
[357315446,1744004840898,-150.0,0.00053423,90]
[357315447,1744004840935,-150.0,0.00053423,90]
[357315448,1744004840969,-150.0,0.00053423,90]
[357315449,1744004841004,-150.0,0.00053423,90]
[357315450,1744004841040,-150.0,0.00053423,90]
[357315451,1744004841075,-150.0,0.00053423,90]